bitfinex/quotes_BTCUSD_20230404
["timestamp","ask_amount","ask_price","bid_price","bid_amount"]
[1680623152872,0.0087531,28041.0,28040.0,2.58782895]
[1680623153608,0.0087531,28041.0,28040.0,3.51733996]
[1680623153842,0.0087531,28041.0,28040.0,3.14035777]
[1680623154368,0.0087531,28041.0,28040.0,2.58782895]
[1680623155378,0.0087531,28041.0,28040.0,2.96481114]
[1680623155893,0.0087531,28041.0,28040.0,2.58782895]
[1680623156685,0.0087531,28041.0,28040.0,3.51733996]
[1680623156960,0.0087531,28041.0,28040.0,3.53511637]
[1680623157342,0.0067531,28041.0,28040.0,3.52011637]
[1680623157588,0.0067531,28041.0,28040.0,3.17113418]
[1680623157948,0.0067531,28041.0,28040.0,3.52011637]
[1680623158222,0.0067531,28041.0,28040.0,3.70051637]
[1680623159830,0.0017561,28041.0,28040.0,3.70051637]
[1680623160639,0.0017561,28041.0,28040.0,3.32353418]
[1680623160640,0.0017561,28041.0,28040.0,3.17033418]
[1680623162491,0.0017561,28041.0,28040.0,3.54731637]
[1680623165908,0.0017561,28041.0,28040.0,3.17033418]
[1680623166176,0.0146361,28043.0,28042.0,0.27461046]
[1680623166437,0.0146361,28043.0,28042.0,1.40912872]
[1680623166689,0.0146361,28043.0,28042.0,1.96903854]
[1680623167467,0.0146361,28043.0,28042.0,2.67333854]
[1680623167751,0.0146361,28043.0,28042.0,2.70127854]
[1680623168017,0.0146361,28043.0,28042.0,2.71905495]
[1680623168813,0.0146361,28043.0,28042.0,2.46301203]
[1680623170985,0.0146361,28043.0,28042.0,2.71899505]
[1680623171869,0.0146361,28043.0,28042.0,2.70121864]
[1680623172532,0.0146361,28043.0,28042.0,2.73743395]
[1680623172983,0.0146361,28043.0,28042.0,3.58145093]
[1680623173209,0.0146361,28043.0,28042.0,4.13397975]
[1680623173472,0.0146361,28043.0,28042.0,4.3898902]
[1680623173707,0.0146361,28043.0,28042.0,4.13397975]
[1680623174840,0.0146361,28043.0,28042.0,4.21027975]
[1680623178655,0.0146361,28043.0,28042.0,4.22805616]
[1680623178869,0.02288,28047.0,28045.0,0.23885046]
[1680623179096,0.0173289,28047.0,28046.0,1.66976407]
[1680623179346,0.0083289,28047.0,28046.0,2.18542333]
[1680623179778,0.0083289,28047.0,28046.0,2.73795215]
[1680623180030,0.0083289,28047.0,28046.0,2.51014271]
[1680623180948,0.0213189,28048.0,28047.0,0.50091046]
[1680623181216,0.0213189,28048.0,28047.0,1.62725323]
[1680623181452,0.0213189,28048.0,28047.0,1.88710305]
[1680623182143,0.0213189,28048.0,28047.0,1.91510305]
[1680623182362,0.0213189,28048.0,28047.0,2.12816177]
[1680623182833,0.0213189,28048.0,28047.0,1.91510305]
[1680623183056,0.02288,28055.0,28051.0,0.38885046]
[1680623183282,0.02288,28055.0,28053.0,1.10474595]
[1680623183283,0.02338042,28054.0,28053.0,1.10474595]
[1680623183510,0.00610052,28054.0,28053.0,0.98428295]
[1680623183745,0.00610052,28054.0,28053.0,1.54407277]
[1680623183969,0.00610052,28054.0,28053.0,1.62003382]
[1680623184196,0.00610052,28054.0,28053.0,1.42413289]
[1680623184421,0.00610052,28054.0,28053.0,2.29217782]
[1680623184650,0.00610052,28054.0,28053.0,2.16423382]
[1680623184872,0.00610052,28054.0,28053.0,2.32556433]
[1680623185318,0.00610052,28054.0,28053.0,2.2719393]
[1680623185321,0.08230052,28054.0,28053.0,2.03034918]
[1680623185552,0.08230052,28054.0,28053.0,2.03046918]
[1680623185997,0.08230052,28054.0,28053.0,2.05846918]
[1680623186220,0.08230052,28054.0,28053.0,2.03040918]
[1680623186445,0.08230052,28054.0,28053.0,2.33304185]
[1680623186670,0.08230052,28054.0,28053.0,2.30504185]
[1680623186900,0.08230052,28054.0,28053.0,2.05834918]
[1680623187351,0.08230052,28054.0,28053.0,2.05187092]
[1680623189498,0.00610052,28054.0,28053.0,1.85907976]
[1680623189726,0.00610052,28054.0,28053.0,2.12026923]
[1680623190886,0.00610052,28054.0,28053.0,2.09226923]
[1680623191332,0.00610052,28054.0,28053.0,2.12026923]
[1680623192092,0.00610052,28054.0,28053.0,2.09226923]
[1680623192322,0.00610052,28054.0,28053.0,2.12026923]
[1680623192550,0.00556584,28054.0,28053.0,2.12026923]
[1680623193000,0.00556584,28054.0,28053.0,2.12020923]
[1680623193687,0.00556584,28054.0,28053.0,2.24803351]
[1680623194828,0.00556584,28054.0,28053.0,2.22003351]
[1680623195075,0.00556584,28054.0,28053.0,2.30519786]
[1680623195300,0.00556584,28054.0,28053.0,2.20537358]
[1680623195832,0.00556584,28054.0,28053.0,2.17737358]
[1680623196058,0.00556584,28054.0,28053.0,2.30519786]
[1680623196278,0.00556584,28054.0,28053.0,2.30518752]
[1680623196503,0.00556584,28054.0,28053.0,2.22003351]
[1680623196958,0.00556584,28054.0,28053.0,2.20536489]
[1680623198117,0.00556584,28054.0,28053.0,2.24803351]
[1680623198793,0.00556584,28054.0,28053.0,2.33318974]
[1680623199248,0.00556584,28054.0,28053.0,2.20536546]
[1680623199955,0.00556584,28054.0,28053.0,2.17736546]
[1680623200185,0.00556584,28054.0,28053.0,2.20536546]
[1680623200409,0.00556584,28054.0,28053.0,2.30518974]
[1680623200641,0.00556584,28054.0,28053.0,2.24809351]
[1680623201561,0.00556584,28054.0,28053.0,2.33323718]
[1680623201789,0.00556584,28054.0,28053.0,2.24809351]
[1680623204077,0.00556584,28054.0,28053.0,2.43615596]
[1680623204298,0.00556584,28054.0,28053.0,2.52131272]
[1680623204527,0.00556584,28054.0,28053.0,2.39348844]
[1680623204773,0.00556584,28054.0,28053.0,1.94423652]
[1680623205919,0.00556584,28054.0,28053.0,2.13855259]
[1680623206186,0.00556584,28054.0,28053.0,1.94423652]
[1680623206401,0.00556584,28054.0,28053.0,2.0720608]
[1680623206633,0.00556584,28054.0,28053.0,1.98690404]
[1680623206863,0.00556584,28054.0,28053.0,2.29305129]
[1680623208430,0.00556584,28054.0,28053.0,2.38129214]
[1680623210694,0.00556584,28054.0,28053.0,2.55171707]
[1680623210916,0.00556584,28054.0,28053.0,2.42389279]
[1680623211924,0.00556584,28054.0,28053.0,2.55166139]
[1680623212151,0.00556584,28054.0,28053.0,2.42389279]
[1680623213985,0.00556584,28054.0,28053.0,2.55268014]
[1680623214435,0.00556584,28054.0,28053.0,2.30533545]
[1680623214653,0.00556584,28054.0,28053.0,2.30539545]
[1680623215772,0.00556584,28054.0,28053.0,2.30533545]
[1680623215994,0.00546181,28054.0,28053.0,2.30539545]
[1680623216216,0.00546181,28054.0,28053.0,2.10924554]
[1680623216410,0.00546181,28054.0,28053.0,2.64085111]
[1680623216629,0.00546181,28054.0,28053.0,2.41821045]
[1680623216847,0.00546181,28054.0,28053.0,2.59429429]
[1680623217073,0.00546181,28054.0,28053.0,2.72213654]
[1680623217315,0.00546181,28054.0,28053.0,2.59429429]
[1680623218133,0.00546181,28054.0,28053.0,2.41821045]
[1680623218606,0.00546181,28054.0,28053.0,2.46941995]
[1680623218871,0.00546181,28054.0,28053.0,2.25628552]
[1680623220410,0.00546181,28054.0,28053.0,2.33248552]
[1680623220634,0.00546181,28054.0,28053.0,2.33242552]
[1680623221614,0.00546181,28054.0,28053.0,2.60583932]
[1680623223019,0.00546181,28054.0,28053.0,2.58806291]
[1680623223458,0.00546181,28054.0,28053.0,2.33242552]
[1680623225937,1.81e-06,28054.0,28053.0,2.33242552]
[1680623226164,1.81e-06,28055.0,28053.0,3.38140412]
[1680623226410,1.81e-06,28055.0,28054.0,0.93305322]
[1680623226672,1.81e-06,28057.0,28054.0,1.52296722]
[1680623226905,1.81e-06,28057.0,28056.0,0.78152102]
[1680623227129,1.81e-06,28057.0,28056.0,1.64133987]
[1680623227357,1.81e-06,28057.0,28056.0,2.25065568]
[1680623228097,1.81e-06,28057.0,28056.0,3.06185568]
[1680623228334,0.00100181,28057.0,28056.0,3.48985568]
[1680623228558,0.00365713,28060.0,28059.0,1.37461046]
[1680623228790,0.02548425,28065.0,28059.0,1.37461046]
[1680623228791,0.02548425,28065.0,28061.0,0.27461046]
[1680623229026,0.02548425,28065.0,28064.0,0.57321011]
[1680623229261,0.02548425,28065.0,28064.0,1.31824021]
[1680623229520,0.02548425,28065.0,28064.0,1.41626939]
[1680623229757,0.02548425,28065.0,28064.0,2.18226939]
[1680623229977,0.02548425,28065.0,28064.0,2.25336702]
[1680623230229,0.02548425,28065.0,28064.0,2.38120023]
[1680623230492,0.02548425,28065.0,28064.0,2.22034406]
[1680623230721,0.02548425,28065.0,28064.0,2.2375945]
[1680623230952,0.02548425,28065.0,28064.0,2.26261325]
[1680623231177,0.02548425,28065.0,28064.0,2.29061325]
[1680623231414,0.02548425,28065.0,28064.0,2.08286192]
[1680623231667,0.02542425,28065.0,28064.0,2.08286192]
[1680623231890,0.02542425,28065.0,28064.0,2.04025877]
[1680623232120,0.02542425,28065.0,28064.0,2.03525877]
[1680623232357,0.02542425,28065.0,28064.0,1.95004102]
[1680623232586,0.02542425,28065.0,28064.0,2.18959731]
[1680623232815,0.02542425,28065.0,28064.0,2.19809731]
[1680623233039,0.02542425,28065.0,28064.0,2.28331506]
[1680623233266,0.02542425,28065.0,28064.0,2.17009731]
[1680623233489,0.02542425,28065.0,28064.0,2.28331506]
[1680623233712,0.02542425,28065.0,28064.0,2.41046996]
[1680623233941,0.02542425,28065.0,28064.0,2.28264906]
[1680623234652,0.02542425,28065.0,28064.0,2.28258906]
[1680623234877,0.02542425,28065.0,28064.0,2.30036547]
[1680623235578,0.02542425,28065.0,28064.0,2.28258906]
[1680623236024,0.02542425,28065.0,28064.0,2.25458906]
[1680623236253,0.02542425,28065.0,28064.0,2.19737131]
[1680623238289,0.02535765,28065.0,28064.0,2.19737131]
[1680623238520,0.02535765,28065.0,28064.0,1.54317445]
[1680623238769,0.02535765,28065.0,28064.0,1.18852389]
[1680623238990,0.02535765,28065.0,28064.0,1.20277689]
[1680623239892,0.02535765,28065.0,28064.0,1.47477689]
[1680623240118,0.02565765,28065.0,28064.0,2.05848445]
[1680623240340,0.02535765,28065.0,28064.0,2.2391835]
[1680623240602,0.02528594,28065.0,28064.0,2.26743475]
[1680623240841,0.02528594,28065.0,28064.0,2.48517995]
[1680623241067,0.02528594,28065.0,28064.0,2.26743475]
[1680623241295,0.02528594,28065.0,28064.0,2.45603527]
[1680623241521,0.02521423,28065.0,28064.0,2.42803527]
[1680623241753,0.02521423,28065.0,28064.0,2.21933622]
[1680623242028,0.02521423,28065.0,28064.0,2.21083622]
[1680623242261,0.02521423,28065.0,28064.0,1.48012566]
[1680623242503,0.02521423,28065.0,28064.0,1.50812566]
[1680623242752,0.02521423,28065.0,28064.0,1.50846631]
[1680623243210,0.02521423,28065.0,28064.0,1.50852631]
[1680623243662,0.02521423,28065.0,28064.0,1.50746852]
[1680623243892,0.02521423,28065.0,28064.0,1.50740852]
[1680623245996,0.02521423,28065.0,28064.0,1.313055]
[1680623246235,0.10981423,28065.0,28064.0,1.009287]
[1680623246465,0.10981423,28065.0,28064.0,1.02712]
[1680623246704,0.10981423,28065.0,28064.0,1.009287]
[1680623246957,0.10981423,28065.0,28064.0,0.995034]
[1680623247205,0.52880348,28065.0,28064.0,0.995034]
[1680623247430,0.52910348,28065.0,28064.0,0.995034]
[1680623249223,0.52910348,28065.0,28064.0,1.011908]
[1680623249457,0.52910348,28065.0,28064.0,1.012345]
[1680623249959,0.11011423,28065.0,28064.0,1.026598]
[1680623250190,0.10981423,28065.0,28064.0,1.026598]
[1680623250421,0.10981423,28065.0,28064.0,1.24846483]
[1680623251381,0.02521423,28065.0,28064.0,1.60317539]
[1680623252749,0.02521423,28065.0,28064.0,1.88238053]
[1680623252979,0.02521423,28065.0,28064.0,1.89088053]
[1680623253203,0.02521423,28065.0,28064.0,2.10518952]
[1680623253436,0.02521423,28065.0,28064.0,1.72918952]
[1680623253981,0.02521423,28065.0,28064.0,1.38130856]
[1680623254206,0.02521423,28065.0,28064.0,1.57763987]
[1680623256674,0.02521423,28065.0,28064.0,1.38130856]
[1680623256912,0.02521423,28065.0,28064.0,2.05730856]
[1680623258842,0.02521423,28065.0,28064.0,2.2502027]
[1680623259070,0.02521423,28065.0,28064.0,2.05730856]
[1680623259301,0.02521423,28065.0,28064.0,2.32926563]
[1680623259523,0.02521423,28065.0,28064.0,2.59599572]
[1680623259765,0.02521423,28065.0,28064.0,2.41448338]
[1680623260195,0.02521423,28065.0,28064.0,2.50241008]
[1680623260506,0.02521423,28065.0,28064.0,2.54501323]
[1680623260752,0.02521423,28065.0,28064.0,2.55345323]
[1680623260971,0.02521423,28065.0,28064.0,2.55351323]
[1680623261190,0.02521423,28065.0,28064.0,2.55345323]
[1680623261447,0.02521423,28065.0,28064.0,2.63866277]
[1680623261674,0.02521423,28065.0,28064.0,2.55345323]
[1680623262871,0.02510179,28065.0,28064.0,2.55345323]
[1680623263321,0.02510179,28065.0,28064.0,2.80954616]
[1680623264004,0.02510179,28065.0,28064.0,3.01899421]
[1680623264229,0.02510179,28065.0,28064.0,2.5877607]
[1680623265428,0.02510179,28065.0,28064.0,2.80104616]
[1680623265686,0.02510179,28065.0,28064.0,2.63891779]
[1680623267048,0.02510179,28065.0,28064.0,2.80947304]
[1680623267844,0.02510179,28065.0,28064.0,2.63891779]
[1680623269645,0.02510179,28065.0,28064.0,2.63041779]
[1680623270536,0.02510179,28065.0,28064.0,2.41713233]
[1680623272352,0.02510179,28065.0,28064.0,2.28982761]
[1680623272805,0.02510179,28065.0,28064.0,2.44969704]
[1680623273300,0.02510179,28065.0,28064.0,2.17773997]
[1680623273879,0.02510179,28065.0,28064.0,2.01506777]
[1680623274411,0.02510179,28065.0,28064.0,1.66036232]
[1680623274941,0.02510179,28065.0,28064.0,1.66036184]
[1680623275200,0.02510179,28065.0,28064.0,1.44702941]
[1680623275477,0.02510179,28065.0,28064.0,1.66036243]
[1680623275726,0.02510179,28065.0,28064.0,1.28715998]
[1680623277090,0.02510179,28065.0,28064.0,1.4945377]
[1680623277922,0.02510179,28065.0,28064.0,1.76170884]
[1680623278205,0.02510179,28065.0,28064.0,1.69166414]
[1680623278472,0.02510179,28065.0,28064.0,1.50311057]
[1680623279517,0.02510179,28065.0,28064.0,1.70583214]
[1680623279796,0.02510179,28065.0,28064.0,1.57782857]
[1680623280399,0.02510179,28065.0,28064.0,1.83424527]
[1680623280939,0.02510179,28065.0,28064.0,1.62091281]
[1680623281235,0.02510179,28065.0,28064.0,1.98750184]
[1680623281643,0.02510179,28065.0,28064.0,2.40993459]
[1680623282740,0.02510179,28065.0,28064.0,2.66587715]
[1680623283534,0.02510179,28065.0,28064.0,2.66578292]
[1680623283799,0.02510179,28065.0,28064.0,2.63778292]
[1680623284089,0.02510179,28065.0,28064.0,2.40984036]
[1680623284354,0.02510179,28065.0,28064.0,2.32514036]
[1680623284623,0.02510179,28065.0,28064.0,2.58108292]
[1680623285192,0.02510179,28065.0,28064.0,2.46594036]
[1680623285688,0.02510179,28065.0,28064.0,2.49394036]
[1680623286196,0.02299,28071.0,28066.0,0.41176]
[1680623286466,0.02299,28071.0,28070.0,0.79564367]
[1680623286770,0.02299,28071.0,28070.0,1.57618851]
[1680623286988,0.02299,28071.0,28070.0,1.74953584]
[1680623287274,0.02299,28071.0,28070.0,1.68650165]
[1680623288291,0.02299,28071.0,28070.0,2.42060165]
[1680623288524,0.02299,28071.0,28070.0,2.44860165]
[1680623288757,0.02299,28071.0,28070.0,2.74948572]
[1680623289487,0.02299,28071.0,28070.0,2.42359284]
[1680623289940,0.02299,28071.0,28070.0,2.46637806]
[1680623291119,0.02299,28071.0,28070.0,2.42359502]
[1680623291349,0.02288,28074.0,28070.0,2.38006382]
[1680623291622,0.02288,28074.0,28073.0,0.53953779]
[1680623291911,0.02288,28074.0,28073.0,1.88060435]
[1680623292179,0.02288,28074.0,28073.0,2.05992435]
[1680623292988,0.02288,28074.0,28073.0,2.07770076]
[1680623293578,0.02288,28074.0,28073.0,2.37379428]
[1680623293579,0.02288,28074.0,28073.0,2.35601787]
[1680623293843,0.02288,28074.0,28073.0,3.01267448]
[1680623294314,0.02288,28074.0,28073.0,2.70194656]
[1680623294799,0.02288,28074.0,28073.0,2.67394656]
[1680623295025,0.02288,28074.0,28073.0,2.70200656]
[1680623295258,0.02288,28074.0,28073.0,2.67400656]
[1680623295501,0.02288,28074.0,28073.0,2.70200656]
[1680623295726,0.02288,28074.0,28073.0,3.02092988]
[1680623295950,0.02288,28074.0,28073.0,3.04892988]
[1680623296174,0.02288,28074.0,28073.0,3.02092988]
[1680623296398,0.02288,28074.0,28073.0,3.04886988]
[1680623297322,0.02288,28074.0,28073.0,3.01236988]
[1680623297548,0.02288,28074.0,28073.0,3.04036988]
[1680623297773,0.02288,28074.0,28073.0,3.01236988]
[1680623297999,0.02288,28074.0,28073.0,3.04036988]
[1680623298445,0.02288,28074.0,28073.0,3.01236988]
[1680623298670,0.02288,28074.0,28073.0,3.04036988]
[1680623299115,0.02288,28074.0,28073.0,2.69344656]
[1680623300238,0.02288,28074.0,28073.0,1.8970343]
[1680623300469,0.02288,28074.0,28073.0,1.755802]
[1680623300697,0.02288,28074.0,28073.0,1.727802]
[1680623300987,0.02288,28074.0,28073.0,1.755802]
[1680623301216,0.02288,28074.0,28073.0,1.727802]
[1680623301440,0.02288,28074.0,28073.0,1.755802]
[1680623301661,0.02288,28074.0,28073.0,1.92467432]
[1680623301886,0.02288,28074.0,28073.0,1.95267432]
[1680623302098,0.02188,28074.0,28073.0,1.95267432]
[1680623302314,0.02188,28074.0,28073.0,1.92467432]
[1680623302979,0.02188,28074.0,28073.0,1.91912424]
[1680623303208,0.10658,28074.0,28073.0,1.39424]
[1680623303440,0.55457074,28074.0,28073.0,1.36624]
[1680623303667,0.55457074,28074.0,28073.0,1.39424]
[1680623303668,0.55487074,28074.0,28073.0,1.39424]
[1680623303888,0.55487074,28074.0,28073.0,1.36624]
[1680623304126,0.55487074,28074.0,28073.0,1.39424]
[1680623304573,0.55487074,28074.0,28073.0,1.36624]
[1680623304850,0.8864815,28074.0,28073.0,0.96844]
[1680623305074,0.9333045,28074.0,28073.0,0.94844]
[1680623305295,0.9276055,28074.0,28073.0,0.91268]
[1680623305515,0.9276055,28074.0,28073.0,0.7618]
[1680623305735,1.06814565,28074.0,28073.0,0.7618]
[1680623305969,1.08655391,28074.0,28073.0,0.7618]
[1680623306427,1.08655391,28074.0,28073.0,0.02]
[1680623306661,0.376,28072.0,28068.0,0.2067]
[1680623306880,0.0847,28069.0,28068.0,0.2067]
[1680623307108,0.085,28069.0,28068.0,0.2067]
[1680623307324,0.085,28069.0,28068.0,0.03576]
[1680623307565,0.50550993,28069.0,28067.0,0.03576]
[1680623307785,0.42080993,28069.0,28068.0,0.026]
[1680623308029,0.54486093,28069.0,28068.0,0.17094]
[1680623308253,0.87710622,28069.0,28068.0,0.93344]
[1680623308475,0.83775522,28069.0,28068.0,0.93344]
[1680623310802,0.0003,28069.0,28068.0,1.11784431]
[1680623312175,0.0003,28069.0,28068.0,1.13547731]
[1680623312868,0.085,28069.0,28068.0,1.13547731]
[1680623313080,0.085,28069.0,28068.0,1.11784431]
[1680623314630,0.085,28069.0,28068.0,1.27640984]
[1680623314845,0.085,28069.0,28068.0,1.29372884]
[1680623315336,0.0003,28069.0,28068.0,1.29372884]
[1680623315770,0.0003,28070.0,28068.0,1.29372884]
[1680623315983,0.0003,28070.0,28069.0,0.018579]
[1680623316222,0.0003,28070.0,28069.0,0.30543998]
[1680623316707,0.41605013,28070.0,28069.0,0.17094]
[1680623316956,0.41711836,28070.0,28069.0,0.17094]
[1680623317192,0.41711836,28070.0,28069.0,0.85724]
[1680623317415,0.41711836,28070.0,28069.0,0.87024]
[1680623317633,0.41711836,28070.0,28069.0,0.6993]
[1680623318341,0.79119885,28070.0,28069.0,0.6993]
[1680623318560,0.83241085,28070.0,28069.0,0.6993]
[1680623319251,0.83241085,28070.0,28069.0,0.69936]
[1680623319684,0.83241085,28070.0,28069.0,0.6993]
[1680623319905,0.79119885,28070.0,28069.0,0.6993]
[1680623320615,0.79119885,28070.0,28069.0,0.87024]
[1680623321286,0.79119885,28070.0,28069.0,0.6993]
[1680623323539,0.83170685,28070.0,28069.0,0.6993]
[1680623325028,0.96091753,28070.0,28069.0,0.6993]
[1680623325179,0.83170685,28070.0,28069.0,0.6993]
[1680623327619,0.83740685,28070.0,28069.0,0.6993]
[1680623327853,0.83170685,28070.0,28069.0,0.6993]
[1680623328079,0.83740685,28070.0,28069.0,0.6993]
[1680623328293,0.83170685,28070.0,28069.0,0.6993]
[1680623328732,0.96148744,28070.0,28069.0,0.6993]
[1680623328945,1.33748744,28070.0,28069.0,0.6993]
[1680623330023,1.20770685,28070.0,28069.0,0.6993]
[1680623330515,0.92402636,28070.0,28069.0,0.6993]
[1680623330761,1.26833675,28070.0,28069.0,0.6993]
[1680623331209,1.26263675,28070.0,28069.0,0.6993]
[1680623331434,1.26263675,28070.0,28069.0,0.54165225]
[1680623331899,1.05199994,28070.0,28069.0,0.54165225]
[1680623332119,1.43176221,28070.0,28069.0,0.54165225]
[1680623332335,1.29808863,28070.0,28069.0,0.54165225]
[1680623332793,1.30378863,28070.0,28069.0,0.54165225]
[1680623333015,0.92402636,28070.0,28069.0,0.54165225]
[1680623333242,1.37470797,28070.0,28069.0,0.54165225]
[1680623333661,1.51331867,28070.0,28069.0,0.54165225]
[1680623334987,1.51331867,28070.0,28069.0,0.54198811]
[1680623335217,1.50761867,28070.0,28069.0,0.54198811]
[1680623335439,1.24379997,28070.0,28069.0,0.54198811]
[1680623337578,0.86779997,28070.0,28069.0,0.54198811]
[1680623337799,1.24379997,28070.0,28069.0,0.54198811]
[1680623338320,0.085,28070.0,28069.0,0.70912245]
[1680623338564,0.0003,28071.0,28069.0,0.70912245]
[1680623338756,0.33199145,28071.0,28069.0,0.70912245]
[1680623339013,0.33229145,28071.0,28069.0,0.70912245]
[1680623339900,0.33229145,28071.0,28069.0,0.69612245]
[1680623340138,0.33229145,28071.0,28069.0,0.70912245]
[1680623340576,0.66378904,28071.0,28069.0,0.70912245]
[1680623341467,0.33229145,28071.0,28069.0,0.70912245]
[1680623342776,0.0003,28071.0,28070.0,0.13340595]
[1680623342998,0.54736283,28072.0,28070.0,0.14765595]
[1680623342999,0.0003,28072.0,28070.0,0.14765595]
[1680623343232,0.51843234,28074.0,28071.0,0.017528]
[1680623343470,0.51843234,28074.0,28071.0,0.21466854]
[1680623343693,0.51843234,28074.0,28072.0,0.186589]
[1680623343930,0.51843234,28074.0,28072.0,0.17088]
[1680623344374,0.39491962,28073.0,28071.0,0.35037125]
[1680623344593,0.39521962,28073.0,28072.0,0.017929]
[1680623344816,0.39521962,28073.0,28071.0,0.17949125]
[1680623345492,0.39521962,28073.0,28072.0,0.17088]
[1680623347274,0.39921962,28073.0,28072.0,0.17088]
[1680623347495,0.39521962,28073.0,28072.0,0.17088]
[1680623347949,0.39521962,28073.0,28072.0,0.17121501]
[1680623348376,0.0043,28073.0,28072.0,0.17121501]
[1680623348592,0.004,28073.0,28072.0,0.17121501]
[1680623349662,0.004,28073.0,28072.0,0.00033501]
[1680623351343,0.004,28073.0,28072.0,0.64103501]
[1680623353497,0.4636313,28073.0,28072.0,0.64103501]
[1680623353712,0.4639313,28073.0,28072.0,0.64103501]
[1680623353928,0.4639313,28073.0,28072.0,0.64100502]
[1680623354145,0.79566895,28073.0,28072.0,0.64100502]
[1680623354368,0.85522765,28073.0,28072.0,0.64100502]
[1680623354590,0.85522765,28073.0,28072.0,0.00033501]
[1680623354591,1.26582531,28073.0,28072.0,0.00033501]
[1680623354816,1.26552531,28073.0,28072.0,0.00033501]
[1680623355509,1.03303765,28073.0,28072.0,0.00033501]
[1680623355738,1.14703388,28073.0,28072.0,0.00033501]
[1680623355955,1.14703388,28073.0,28067.0,0.20688]
[1680623356174,0.376,28071.0,28067.0,0.20676]
[1680623356420,0.37426923,28068.0,28067.0,0.20688]
[1680623356641,0.74765145,28068.0,28067.0,0.20688]
[1680623356865,0.74765145,28068.0,28067.0,0.87018]
[1680623357080,0.70664145,28068.0,28067.0,0.87018]
[1680623358020,1.10611713,28068.0,28067.0,0.89649548]
[1680623359140,1.10611713,28068.0,28067.0,0.72555548]
[1680623359368,1.14772613,28068.0,28067.0,0.72555548]
[1680623362465,1.14772613,28068.0,28067.0,0.68979548]
[1680623363992,1.14272613,28068.0,28067.0,0.68979548]
[1680623364205,1.14272613,28068.0,28067.0,0.68973548]
[1680623366532,1.23262613,28068.0,28067.0,0.68973548]
[1680623366759,1.37517074,28068.0,28067.0,0.68961548]
[1680623366992,1.36947074,28068.0,28067.0,0.68961548]
[1680623367886,1.36947074,28068.0,28067.0,0.66361548]
[1680623368092,1.37547074,28068.0,28067.0,0.66361548]
[1680623368313,1.36947074,28068.0,28067.0,0.66361548]
[1680623368536,1.23322613,28068.0,28067.0,0.66561548]
[1680623368988,1.23892613,28068.0,28067.0,0.66561548]
[1680623369215,1.23892613,28068.0,28067.0,0.00231548]
[1680623369440,1.23862613,28068.0,28067.0,0.00231548]
[1680623369883,1.38147074,28068.0,28067.0,0.00231548]
[1680623370292,1.37577074,28068.0,28067.0,0.00231548]
[1680623371893,1.23292613,28068.0,28067.0,0.00231548]
[1680623372780,1.22692613,28068.0,28067.0,0.00031548]
[1680623373008,1.23292613,28068.0,28067.0,0.00131548]
[1680623373222,1.22692613,28068.0,28067.0,0.00031548]
[1680623373463,1.23322613,28068.0,28067.0,0.00231548]
[1680623374125,0.95707306,28068.0,28067.0,0.00231548]
[1680623374349,1.04717306,28068.0,28067.0,0.00231548]
[1680623374773,1.45341747,28068.0,28067.0,0.00231548]
[1680623374984,1.45341747,28068.0,28067.0,0.002]
[1680623375198,1.04717306,28068.0,28067.0,0.002]
[1680623375641,0.92385045,28068.0,28067.0,0.002]
[1680623375854,1.28436479,28068.0,28067.0,0.002]
[1680623376074,1.28436479,28068.0,28067.0,0.00230873]
[1680623376884,1.28436479,28068.0,28067.0,0.002]
[1680623377735,1.07385045,28068.0,28067.0,0.002]
[1680623378756,1.07385045,28068.0,28067.0,0.2938]
[1680623378983,1.07415045,28068.0,28067.0,0.2938]
[1680623382239,0.92415045,28068.0,28067.0,0.2938]
[1680623382475,1.31869457,28068.0,28067.0,0.2938]
[1680623382696,0.92415045,28068.0,28067.0,0.002]
[1680623383188,1.38614718,28068.0,28067.0,0.002]
[1680623384492,1.5281819,28068.0,28067.0,0.002]
[1680623384709,1.38614718,28068.0,28067.0,0.002]
[1680623384925,1.38044718,28068.0,28067.0,0.002]
[1680623385571,1.38614718,28068.0,28067.0,0.002]
[1680623394602,1.38614718,28068.0,28067.0,0.002]
[1680623395467,1.21724718,28068.0,28067.0,0.002]
[1680623395916,0.75525045,28068.0,28067.0,0.002]
[1680623396188,0.0063,28068.0,28067.0,0.21105456]
[1680623396414,0.00591125,28068.0,28067.0,0.21404656]
[1680623396861,0.00591125,28068.0,28067.0,0.21416656]
[1680623397080,0.00591125,28068.0,28067.0,0.21446894]
[1680623397305,0.00591125,28068.0,28067.0,0.21452894]
[1680623397583,0.376,28072.0,28067.0,0.21452894]
[1680623397584,0.3763,28072.0,28067.0,0.21252894]
[1680623397841,0.33211836,28071.0,28067.0,0.23782548]
[1680623398064,0.33211836,28071.0,28067.0,0.20828594]
[1680623398749,0.33211836,28071.0,28067.0,0.19528594]
[1680623398985,0.33211836,28071.0,28069.0,0.3734]
[1680623399216,0.70142987,28071.0,28069.0,0.37358]
[1680623399889,0.70142987,28071.0,28070.0,0.00030154]
[1680623400117,0.70142987,28071.0,28069.0,0.37358]
[1680623400345,0.70142987,28071.0,28069.0,0.5305223]
[1680623400810,1.19090186,28071.0,28069.0,0.37358]
[1680623401043,0.039367,28070.0,28069.0,0.37358]
[1680623401267,0.039367,28070.0,28069.0,0.37352]
[1680623401268,1.00531873,28070.0,28069.0,0.37352]
[1680623401493,1.00531873,28070.0,28069.0,0.37358]
[1680623401494,0.93962192,28070.0,28069.0,0.37358]
[1680623401730,1.06702556,28070.0,28069.0,0.37358]
[1680623402179,0.99882556,28070.0,28069.0,0.37358]
[1680623402414,0.99912556,28070.0,28069.0,0.3734]
[1680623402691,1.00512556,28070.0,28069.0,0.3754]
[1680623402916,0.99912556,28070.0,28069.0,0.3734]
[1680623403132,1.00512556,28070.0,28069.0,0.3754]
[1680623403361,1.04113488,28070.0,28069.0,0.3754]
[1680623409415,1.12587956,28070.0,28069.0,0.3754]
[1680623409417,1.12587956,28070.0,28069.0,0.002]
[1680623409418,1.2524524,28070.0,28069.0,0.002]
[1680623409652,1.5606524,28070.0,28069.0,0.002]
[1680623409875,1.72892996,28070.0,28069.0,0.002]
[1680623410095,1.72950546,28070.0,28069.0,0.002]
[1680623410309,1.60211244,28070.0,28069.0,0.002]
[1680623410545,1.7294882,28070.0,28069.0,0.002]
[1680623410791,1.7291882,28070.0,28069.0,0.002]
[1680623411268,1.60181244,28070.0,28069.0,0.002]
[1680623412607,2.02260986,28070.0,28069.0,0.002]
[1680623412852,2.06415413,28070.0,28069.0,0.002]
[1680623413113,3.53511052,28070.0,28059.0,0.03594]
[1680623413350,0.376,28062.0,28059.0,0.12585606]
[1680623413578,0.376,28060.0,28059.0,0.12585606]
[1680623413772,0.89854484,28060.0,28059.0,0.12585606]